fUST/lending_fUST_20241007
["ID","MTS","AMOUNT","RATE_DAILY","PERIOD"]
[339982879,1728264647096,-406.0,0.00018412,2]
[339982880,1728264647106,-4010.25951076,0.00018672,2]
[339982881,1728264647119,-150.0,0.0001871,2]
[339982882,1728264647129,-150.0,0.0001871,2]
[339982883,1728264647139,-500.0,0.00018771,2]
[339982884,1728264647148,-488.18091068,0.00018771,2]
[339982885,1728264647157,-693.50235099,0.00018772,2]
[339982886,1728264647166,-1821.94401841,0.00019,2]
[339982887,1728264647176,-172.656264,0.00019178,2]
[339982888,1728264647185,-525.0,0.00019231,2]
[339982889,1728264647195,-1218.0,0.00019231,2]
[339982890,1728264647204,-272.782,0.00019231,2]
[339982891,1728264647213,-500.0,0.00019285,2]
[339982892,1728264647223,-165.284872,0.00019313,2]
[339982893,1728264647233,-184.063601,0.00019313,2]
[339982894,1728264647242,-197.293552,0.00019313,2]
[339982895,1728264647251,-166.599944,0.00019313,2]
[339982896,1728264647261,-361.2881049,0.0001932,2]
[339982897,1728264647271,-500.0,0.00019377,7]
[339982898,1728264647280,-500.0,0.00019377,7]
[339982899,1728264647289,-500.0,0.00019377,7]
[339982900,1728264647299,-580.48,0.00019377,7]
[339982901,1728264647309,-3000.0,0.000195,2]
[339982902,1728264647318,-183.046,0.00019699,2]
[339982903,1728264647328,-678.46622,0.00019785,2]
[339982904,1728264647337,-824.13678743,0.00019859,2]
[339982905,1728264647347,-484.47,0.00019938,3]
[339982906,1728264647358,-9567.28685539,0.00019948,7]
[339982951,1728265649166,-163.171859,0.00013096,2]
[339982952,1728265649186,-74.36471733,0.00014,2]
[339982993,1728265832744,-248.97,0.00014,2]
[339982994,1728265832754,-403.65069722,0.00017486,3]
[339982995,1728265832764,-363.45802824,0.00017586,2]
[339982996,1728265832777,-746.60585568,0.00017586,2]
[339983013,1728265839148,-398.29097488,0.00017586,2]
[339983014,1728265839158,-160.744625,0.00017677,2]
[339983015,1728265839169,-571.369854,0.00017707,2]
[339983016,1728265839179,-160.744625,0.00017748,2]
[339983017,1728265839190,-160.744625,0.00017819,2]
[339983018,1728265839201,-202.658511,0.0001784,2]
[339983019,1728265839210,-160.744625,0.00017889,2]
[339983020,1728265839220,-202.658511,0.00017929,2]
[339983021,1728265839230,-160.744625,0.0001796,2]
[339983022,1728265839239,-160.744625,0.00018031,2]
[339983023,1728265839248,-48.01191919,0.00018102,2]
[339983058,1728265846921,-112.73270581,0.00018102,2]
[339983059,1728265846931,-160.744625,0.00018173,2]
[339983060,1728265846941,-160.744625,0.00018244,2]
[339983061,1728265846951,-160.744625,0.00018314,2]
[339983062,1728265846960,-160.744625,0.00018385,2]
[339983063,1728265846970,-1.45391487,0.00018456,2]
[339983115,1728267038037,-224.07,0.000144,2]
[339983116,1728267038047,-188.629208,0.000178,2]
[339983117,1728267038057,-163.171859,0.00018,2]
[339983118,1728267038067,-188.629208,0.00018032,2]
[339983119,1728267038077,-32.1650661,0.00018264,2]
[339983120,1728267038090,-156.4641419,0.00018264,2]
[339983121,1728267038100,-1500.99823163,0.00018351,2]
[339983122,1728267038110,-188.629208,0.00018496,2]
[339983123,1728267038122,-188.629208,0.00018728,2]
[339983124,1728267038133,-3751.42138132,0.0001889,2]
[339983125,1728267038143,-306.0,0.000189,2]
[339983126,1728267038152,-660.59009181,0.000189,2]
[339983127,1728267038163,-209.3542939,0.00018959,2]
[339983128,1728267038172,-300.0,0.00018989,2]
[339983129,1728267038182,-240.0,0.00018989,2]
[339983130,1728267038191,-462.33490065,0.0001899,2]
[339983131,1728267038201,-2432.01682255,0.0001899,3]
[339983133,1728267040121,-722.0,0.0001899,3]
[339983134,1728267040134,-52153.38739944,0.0001899,3]
[339983170,1728267062956,66.0,0.0001939,120]
[339983171,1728267062986,84.5,0.0001939,120]
[339983172,1728267063449,169.56,0.0001938,120]
[339983237,1728267947157,-201.67,0.000158,2]
[339983238,1728267947181,-167.0772049,0.00016973,2]
[339983239,1728267947204,-165.070015,0.00017217,2]
[339983240,1728267947226,-381.8169447,0.0001734,2]
[339983244,1728268049099,-180.44085608,0.0001734,2]
[339983245,1728268049121,-628.00261402,0.0001734,2]
[339983253,1728268115589,152.04030811,0.0002,120]
[339983275,1728268238428,-181.5,0.000158,2]
[339983276,1728268238439,-1104.809217,0.00017329,2]
[339983277,1728268238450,-1809.1557609,0.00017362,2]
[339983278,1728268238461,-165.070015,0.00017396,2]
[339983279,1728268238473,-915.932447,0.00017445,2]
[339983280,1728268238482,-165.070015,0.00017576,2]
[339983281,1728268238492,-165.070015,0.00017755,2]
[339983282,1728268238501,-165.070015,0.00017934,2]
[339983283,1728268238510,-300.0,0.00017999,2]
[339983284,1728268238520,-10981.0,0.00018,2]
[339983285,1728268238530,-163.249766,0.00018,2]
[339983286,1728268238540,-1104.809217,0.00018014,2]
[339983287,1728268238551,-165.070015,0.00018114,2]
[339983288,1728268238561,-1104.809217,0.00018698,2]
[339983289,1728268238571,-307.6666806,0.0001874,2]
[339983290,1728268238580,-449.16202,0.00018796,2]
[339983292,1728268238591,-4684.55805384,0.00018797,2]
[339983294,1728268238600,-713.78936333,0.0001889,2]
[339983296,1728268238610,-713.78936333,0.00018893,2]
[339983298,1728268238620,-713.78936333,0.00018895,2]
[339983300,1728268238630,-713.78936333,0.00018898,2]
[339983302,1728268238639,-424.11874047,0.00018898,2]
[339983304,1728268238650,-200.0,0.000189,7]
[339983305,1728268238660,-713.78936333,0.000189,2]
[339983306,1728268238672,-210.94617624,0.000189,7]
[339983307,1728268238682,-500.0,0.00018905,2]
[339983308,1728268238692,-158.7765364,0.00018959,2]
[339983309,1728268238703,-392.06,0.0001897,3]
[339983310,1728268238713,-196.03,0.0001897,3]
[339983311,1728268238724,-588.14,0.0001897,3]
[339983312,1728268238734,-500.76697429,0.00018973,2]
[339983313,1728268238745,-500.0,0.00018973,2]
[339983314,1728268238757,-573.57764846,0.00018973,2]
[339983315,1728268238767,-258.35042653,0.00018973,2]
[339983316,1728268238777,-500.0,0.00018973,2]
[339983317,1728268238789,-501.6709634,0.00018973,2]
[339983318,1728268238800,-500.52494556,0.00018973,2]
[339983319,1728268238810,-255.642953,0.00018973,2]
[339983320,1728268238821,-255.642953,0.00018973,2]
[339983321,1728268238832,-151.0,0.00018973,2]
[339983322,1728268238843,-398.882156,0.00018973,2]
[339983323,1728268238855,-151.0,0.00018973,2]
[339983324,1728268238866,-398.882156,0.00018973,2]
[339983325,1728268238876,-1128.233927,0.00018973,2]
[339983326,1728268238886,-1128.233927,0.00018973,2]
[339983327,1728268238898,-151.0,0.00018973,2]
[339983328,1728268238908,-300.9958,0.00018973,2]
[339983329,1728268238921,-3121.041118,0.00018973,2]
[339983330,1728268238932,-3121.041118,0.00018973,2]
[339983331,1728268238941,-151.0,0.00018973,2]
[339983332,1728268238951,-151.0,0.00018973,2]
[339983333,1728268238961,-151.0,0.00018973,2]
[339983334,1728268238971,-467.340935,0.00018973,2]
[339983335,1728268238987,-467.340935,0.00018973,2]
[339983336,1728268238998,-151.0,0.00018973,2]
[339983337,1728268239009,-565.192008,0.00018973,2]
[339983338,1728268239019,-565.192008,0.00018973,2]
[339983339,1728268239030,-417.484437,0.00018973,2]
[339983340,1728268239042,-153.61372,0.00018973,2]
[339983341,1728268239053,-417.484437,0.00018973,2]
[339983342,1728268239063,-151.0,0.00018973,2]
[339983343,1728268239072,-151.0,0.00018973,2]
[339983344,1728268239082,-151.0,0.00018973,2]
[339983345,1728268239096,-151.0,0.00018973,2]
[339983346,1728268239106,-151.0,0.00018973,2]
[339983347,1728268239116,-151.0,0.00018973,2]
[339983348,1728268239126,-151.0,0.00018973,2]
[339983349,1728268239136,-153.823877,0.00018973,2]
[339983350,1728268239146,-273.975131,0.00018973,2]
[339983351,1728268239157,-273.975131,0.00018973,2]
[339983352,1728268239168,-273.975131,0.00018973,2]
[339983353,1728268239179,-273.975131,0.00018973,2]
[339983354,1728268239189,-151.0,0.00018973,2]
[339983355,1728268239199,-270.312726,0.00018973,2]
[339983356,1728268239209,-316.491992,0.00018973,2]
[339983357,1728268239221,-151.0,0.00018973,2]
[339983358,1728268239231,-316.491992,0.00018973,2]
[339983359,1728268239242,-151.0,0.00018973,2]
[339983360,1728268239253,-316.491992,0.00018973,2]
[339983361,1728268239265,-151.0,0.00018973,2]
[339983362,1728268239276,-316.491992,0.00018973,2]
[339983363,1728268239286,-316.491992,0.00018973,2]
[339983364,1728268239297,-316.491992,0.00018973,2]
[339983365,1728268239308,-151.0,0.00018973,2]
[339983366,1728268239318,-151.0,0.00018973,2]
[339983367,1728268239328,-151.0,0.00018973,2]
[339983368,1728268239339,-151.0,0.00018973,2]
[339983369,1728268239350,-151.0,0.00018973,2]
[339983370,1728268239361,-151.0,0.00018973,2]
[339983371,1728268239371,-151.0,0.00018973,2]
[339983372,1728268239383,-151.0,0.00018973,2]
[339983373,1728268239394,-151.0,0.00018973,2]
[339983374,1728268239404,-151.0,0.00018973,2]
[339983375,1728268239414,-151.0,0.00018973,2]
[339983376,1728268239424,-151.0,0.00018973,2]
[339983377,1728268239434,-307.585162,0.00018973,2]
[339983378,1728268239447,-307.585162,0.00018973,2]
[339983379,1728268239457,-307.585162,0.00018973,2]
[339983380,1728268239469,-307.585162,0.00018973,2]
[339983381,1728268239478,-307.585162,0.00018973,2]
[339983382,1728268239488,-307.585162,0.00018973,2]
[339983383,1728268239498,-307.585162,0.00018973,2]
[339983384,1728268239507,-307.585162,0.00018973,2]
[339983385,1728268239516,-260.998062,0.00018973,2]
[339983386,1728268239526,-151.0,0.00018973,2]
[339983387,1728268239535,-151.0,0.00018973,2]
[339983388,1728268239546,-151.0,0.00018973,2]
[339983389,1728268239556,-151.0,0.00018973,2]
[339983390,1728268239566,-152.253033,0.00018973,2]
[339983391,1728268239575,-1925.83,0.00018973,2]
[339983392,1728268239586,-1925.83,0.00018973,2]
[339983393,1728268239597,-1925.83,0.00018973,2]
[339983394,1728268239609,-1925.83,0.00018973,2]
[339983395,1728268239621,-1925.83,0.00018973,2]
[339983396,1728268239630,-1925.83,0.00018973,2]
[339983397,1728268239640,-1925.83,0.00018973,2]
[339983398,1728268239650,-1925.83,0.00018973,2]
[339983399,1728268239660,-151.0,0.00018973,2]
[339983400,1728268239672,-151.0,0.00018973,2]
[339983401,1728268239682,-151.0,0.00018973,2]
[339983402,1728268239691,-151.0,0.00018973,2]
[339983403,1728268239701,-151.0,0.00018973,2]
[339983404,1728268239710,-151.0,0.00018973,2]
[339983405,1728268239720,-151.0,0.00018973,2]
[339983406,1728268239731,-256.426381,0.00018973,2]
[339983407,1728268239744,-180.536483,0.0001898,2]
[339983408,1728268239755,-151.0,0.0001898,2]
[339983409,1728268239766,-151.0,0.0001898,2]
[339983410,1728268239776,-273.975131,0.0001898,2]
[339983411,1728268239785,-273.975131,0.0001898,2]
[339983412,1728268239795,-307.585162,0.0001898,2]
[339983413,1728268239806,-307.585162,0.0001898,2]
[339983414,1728268239816,-163.338594,0.0001898,2]
[339983417,1728268239825,-1925.83,0.0001898,2]
[339983419,1728268239835,-1925.83,0.0001898,2]
[339983421,1728268239845,-151.0,0.0001898,2]
[339983423,1728268239855,-151.0,0.0001898,2]
[339983426,1728268239865,-1952.48286329,0.0001898,3]
[339983434,1728268239966,-25217.18707205,0.0001898,3]
[339983437,1728268240179,-57699.54848286,0.0001898,3]
[339983438,1728268240188,-151.0,0.00018989,2]
[339983440,1728268240197,-467.340935,0.00018989,2]
[339983441,1728268240207,-467.340935,0.00018989,2]
[339983442,1728268240217,-154.837405,0.00018989,2]
[339983443,1728268240228,-565.192008,0.00018989,2]
[339983444,1728268240239,-417.484437,0.00018989,2]
[339983445,1728268240250,-565.192008,0.00018989,2]
[339983446,1728268240260,-417.484437,0.00018989,2]
[339983447,1728268240271,-155.556301,0.00018989,2]
[339983448,1728268240281,-316.491992,0.00018989,2]
[339983449,1728268240292,-316.491992,0.00018989,2]
[339983450,1728268240303,-487.36120368,0.00018989,2]
[339983451,1728268240314,-215.54757971,0.00018989,2]
[339983452,1728268240323,-500.0,0.00018989,2]
[339983453,1728268240334,-188.52033914,0.00018989,2]
[339983454,1728268240345,-500.0,0.00018989,2]
[339983455,1728268240356,-500.0,0.00018989,2]
[339983456,1728268240366,-201.43848514,0.00018989,2]
[339983457,1728268240376,-500.0,0.00018989,2]
[339983458,1728268240386,-500.0,0.00018989,2]
[339983459,1728268240398,-316.491992,0.00018989,2]
[339983460,1728268240410,-316.491992,0.00018989,2]
[339983461,1728268240421,-151.0,0.00018989,2]
[339983462,1728268240431,-151.0,0.00018989,2]
[339983463,1728268240441,-151.0,0.00018989,2]
[339983464,1728268240452,-151.0,0.00018989,2]
[339983465,1728268240463,-151.0,0.00018989,2]
[339983466,1728268240474,-151.0,0.00018989,2]
[339983467,1728268240483,-151.0,0.00018989,2]
[339983468,1728268240491,-151.0,0.00018989,2]
[339983469,1728268240501,-307.585162,0.00018989,2]
[339983470,1728268240510,-307.585162,0.00018989,2]
[339983471,1728268240521,-1925.83,0.00018989,2]
[339983472,1728268240532,-1925.83,0.00018989,2]
[339983473,1728268240542,-151.0,0.00018989,2]
[339983474,1728268240553,-160.41075969,0.00018989,2]
[339983475,1728268240563,-151.0,0.0001899,2]
[339983476,1728268240572,-151.0,0.0001899,2]
[339983477,1728268240581,-251.63488,0.0001899,2]
[339983478,1728268240590,-151.0,0.0001899,2]
[339983479,1728268240599,-151.0,0.0001899,2]
[339983480,1728268240609,-151.0,0.0001899,2]
[339983481,1728268240617,-255.642953,0.0001899,2]
[339983482,1728268240626,-255.642953,0.0001899,2]
[339983483,1728268240636,-255.642953,0.0001899,2]
[339983484,1728268240645,-255.642953,0.0001899,2]
[339983485,1728268240654,-255.642953,0.0001899,2]
[339983486,1728268240663,-255.642953,0.0001899,2]
[339983487,1728268240674,-151.0,0.0001899,2]
[339983488,1728268240683,-151.0,0.0001899,2]
[339983489,1728268240692,-151.0,0.0001899,2]
[339983490,1728268240702,-151.0,0.0001899,2]
[339983491,1728268240711,-398.882156,0.0001899,2]
[339983492,1728268240721,-398.882156,0.0001899,2]
[339983493,1728268240730,-398.882156,0.0001899,2]
[339983494,1728268240739,-398.882156,0.0001899,2]
[339983495,1728268240749,-151.0,0.0001899,2]
[339983496,1728268240758,-151.0,0.0001899,2]
[339983497,1728268240767,-398.882156,0.0001899,2]
[339983498,1728268240776,-151.0,0.0001899,2]
[339983499,1728268240785,-398.882156,0.0001899,2]
[339983500,1728268240794,-151.0,0.0001899,2]
[339983501,1728268240804,-398.882156,0.0001899,2]
[339983502,1728268240813,-398.882156,0.0001899,2]
[339983503,1728268240823,-1128.233927,0.0001899,2]
[339983504,1728268240832,-1128.233927,0.0001899,2]
[339983505,1728268240841,-1128.233927,0.0001899,2]
[339983506,1728268240851,-1128.233927,0.0001899,2]
[339983507,1728268240861,-1128.233927,0.0001899,2]
[339983508,1728268240871,-1128.233927,0.0001899,2]
[339983509,1728268240880,-1128.233927,0.0001899,2]
[339983510,1728268240889,-1128.233927,0.0001899,2]
[339983511,1728268240898,-151.0,0.0001899,2]
[339983512,1728268240907,-209.825866,0.0001899,2]
[339983513,1728268240918,-300.9958,0.0001899,2]
[339983514,1728268240935,-300.9958,0.0001899,2]
[339983515,1728268240944,-300.9958,0.0001899,2]
[339983516,1728268240954,-300.9958,0.0001899,2]
[339983517,1728268240963,-300.9958,0.0001899,2]
[339983518,1728268240974,-300.9958,0.0001899,2]
[339983519,1728268240983,-300.9958,0.0001899,2]
[339983520,1728268240993,-300.9958,0.0001899,2]
[339983521,1728268241003,-3121.041118,0.0001899,2]
[339983522,1728268241145,-3121.041118,0.0001899,2]
[339983523,1728268241156,-3121.041118,0.0001899,2]
[339983524,1728268241169,-3121.041118,0.0001899,2]
[339983525,1728268241179,-3121.041118,0.0001899,2]
[339983526,1728268241190,-3121.041118,0.0001899,2]
[339983527,1728268241201,-3121.041118,0.0001899,2]
[339983528,1728268241211,-3121.041118,0.0001899,2]
[339983529,1728268241222,-3121.041118,0.0001899,2]
[339983530,1728268241234,-1160.296848,0.0001899,2]
[339983633,1728269149149,-178.35,0.000158,2]
[339983634,1728269149172,-49.23686406,0.00017606,2]
[339983635,1728269209570,5000.0,0.00010211,2]
[339983637,1728269236107,-159.63050524,0.00017606,2]
[339983638,1728269236128,-355.00017449,0.0001763,2]
[339983754,1728269438493,-167.95,0.000155,2]
[339983755,1728269438505,-102.96604851,0.0001763,2]
[339983756,1728269438517,-346.60114307,0.00017752,2]
[339983757,1728269438530,-4176.04734025,0.00017752,2]
[339983758,1728269438669,-319.2398709,0.00017752,2]
[339983875,1728269443586,-302.0,0.00017752,2]
[339983878,1728269443600,-173.69848798,0.00017752,2]
[339983880,1728269443611,-163.512154,0.00018,2]
[339983882,1728269443622,-300.0,0.00018423,2]
[339983883,1728269443631,-300.0,0.00018423,2]
[339983886,1728269443643,-390.92692313,0.00018424,2]
[339983936,1728269446428,-604.0,0.00018424,2]
[339983964,1728270632594,-184.39,0.000149,2]
[339983965,1728270632604,-167.6520812,0.00017058,2]
[339983967,1728270632614,-817.1369647,0.00017254,2]
[339983970,1728270632625,-2988.11011,0.00017302,2]
[339983971,1728270632636,-311.7348716,0.0001731,2]
[339983972,1728270632647,-921.691173,0.0001738,2]
[339983973,1728270632660,-2988.11011,0.00017987,2]
[339983974,1728270632671,-163.450797,0.00018,2]
[339983975,1728270632680,-300.0,0.00018117,2]
[339983976,1728270632690,-300.0,0.00018117,2]
[339983977,1728270632700,-6576.15551645,0.00018118,2]
[339983978,1728270632709,-413.0249282,0.00018178,2]
[339983979,1728270632719,-421.1812685,0.00018329,2]
[339983980,1728270632728,-300.0,0.000184,7]
[339983981,1728270632737,-300.85537775,0.000184,2]
[339983982,1728270632747,-1839.75456,0.00018423,2]
[339983983,1728270632756,-5073.21542607,0.00018424,2]
[339983984,1728270632766,-2988.11011,0.00018672,2]
[339983985,1728270632775,-150.347705,0.000189,2]
[339983986,1728270632784,-500.0,0.00018905,2]
[339983987,1728270632793,-331.74,0.0001898,3]
[339983988,1728270632802,-165.87,0.0001898,3]
[339983989,1728270632811,-349.21099674,0.0001898,3]
[339983990,1728270632825,-148.41900326,0.0001898,3]
[339983991,1728270632836,-150.01,0.00018989,2]
[339983992,1728270632845,-406.06514106,0.00018989,2]
[339983996,1728270643680,-248.76860011,0.00018989,2]
[339983997,1728270643690,-351.23139989,0.00018989,2]
[339984017,1728270646762,-461.57180004,0.00018989,2]
[339984052,1728271558117,-186.11,0.000149,2]
[339984053,1728271558141,-166.666666,0.00017233,2]
[339984054,1728271558162,-629.95276855,0.00017493,2]
[339984055,1728271630111,-651.48768345,0.00017493,2]
[339984056,1728271630135,-289.30692725,0.000176,2]
[339984115,1728271832778,-167.5,0.000149,2]
[339984116,1728271832790,-171.53865975,0.000176,2]
[339984117,1728271832800,-242.93190171,0.00017642,2]
[339984118,1728271832812,-900.0,0.00017642,2]
[339984140,1728271833051,-1365.42120479,0.00017642,2]
[339984142,1728271833062,-165.070015,0.00017713,2]
[339984143,1728271833071,-197.83138136,0.00017855,2]
[339984144,1728271833081,-562.25780078,0.00017955,2]
[339984145,1728271833091,-500.0,0.00017955,2]
[339984146,1728271833101,-163.450797,0.00018,2]
[339984147,1728271833111,-1281.440452,0.00018178,2]
[339984148,1728271833120,-153.0,0.00018329,2]
[339984149,1728271833130,-689.0084906,0.00018329,2]
[339984150,1728271833140,-500.0,0.00018455,2]
[339984151,1728271833150,-300.0,0.00018547,2]
[339984152,1728271833159,-209.6410897,0.00018548,2]
[339984153,1728271833169,-209.6410897,0.00018548,2]
[339984154,1728271833179,-307.2810882,0.000187,2]
[339984155,1728271833189,-2942.12521271,0.00018809,2]
[339984157,1728271838972,-2514.52774477,0.00018809,2]
[339984159,1728271838984,-1119.50255898,0.00018809,2]
[339984160,1728271838994,-1281.440452,0.00018863,2]
[339984161,1728271839004,-473.78551097,0.00018955,2]
[339984162,1728271839017,-402.50583703,0.00018955,2]
[339984163,1728271839027,-151.768,0.00018962,2]
[339984164,1728271839037,-299.734,0.00018962,2]
[339984165,1728271839046,-530.324,0.00018962,2]
[339984166,1728271839055,-201.0,0.0001898,2]
[339984167,1728271839065,-165.87,0.0001898,3]
[339984168,1728271839074,-187.43708628,0.0001898,3]
[339984176,1728271840928,-935.89830891,0.00018962,2]
[339984177,1728271840940,-282.10169109,0.00018962,2]
[339984178,1728271840950,-3.19719148,0.0001898,3]
[339984179,1728271840964,-306.97572224,0.0001898,3]
[339984180,1728271840974,-195.00636547,0.0001898,2]
[339984181,1728271840986,-276.27384394,0.0001898,2]
[339984182,1728271840996,-185.05034806,0.0001898,3]
[339984186,1728271843970,-2478.04381501,0.0001898,3]
[339984187,1728271843982,-2564.11815565,0.0001898,3]
[339984194,1728272750135,-300.0,0.00013999,2]
[339984195,1728272750164,-139.00112111,0.00014,2]
[339984196,1728272773950,253.49,0.000202,120]
[339984197,1728272833111,-300.0,0.00013999,2]
[339984198,1728272833139,-411.71917987,0.00014,2]
[339984212,1728273031403,234.44659607,0.00010211,2]
[339984216,1728273031430,115.55340393,0.00010211,2]
[339984245,1728273031797,-300.0,0.00013999,2]
[339984247,1728273031809,-10872.11969486,0.00014,2]
[339984249,1728273031819,-168.59,0.000151,2]
[339984251,1728273031829,-407.0,0.00015337,2]
[339984252,1728273031839,-167.0772049,0.00016484,2]
[339984254,1728273031851,-209.334204,0.00016512,2]
[339984256,1728273031863,-407.922881,0.00016566,2]
[339984258,1728273031872,-208.8673693,0.00016764,2]
[339984260,1728273031882,-1762.3607079,0.00016769,2]
[339984262,1728273031891,-209.334204,0.00017196,2]
[339984263,1728273031901,-209.334204,0.00017881,2]
[339984265,1728273031910,-163.450797,0.00018,2]
[339984267,1728273031919,-153.0,0.00018078,2]
[339984269,1728273031928,-153.0,0.00018178,2]
[339984271,1728273031938,-153.0,0.00018178,2]
[339984273,1728273031947,-658.98244425,0.00018208,2]
[339984275,1728273031957,-2001.82172059,0.000185,3]
[339984276,1728273031966,-5269.62184958,0.00018778,2]
[339984278,1728273031975,-150.0,0.0001886,2]
[339984280,1728273031984,-667.326,0.0001886,2]
[339984282,1728273031994,-151.0,0.00018878,2]
[339984284,1728273032004,-151.0,0.00018878,2]
[339984286,1728273032014,-224.966278,0.00018878,2]
[339984288,1728273032026,-224.966278,0.00018878,2]
[339984290,1728273032037,-191.782591,0.00018878,2]
[339984292,1728273032049,-564.116963,0.00018878,2]
[339984293,1728273032060,-191.782591,0.00018878,2]
[339984303,1728273032245,-564.116963,0.00018878,2]
[339984305,1728273032256,-160.603067,0.00018878,2]
[339984306,1728273032268,-151.0,0.00018878,2]
[339984308,1728273032277,-151.0,0.00018878,2]
[339984310,1728273032287,-151.0,0.00018878,2]
[339984312,1728273032297,-151.0,0.00018878,2]
[339984314,1728273032313,-151.0,0.00018878,2]
[339984316,1728273032324,-151.0,0.00018878,2]
[339984318,1728273032333,-151.0,0.00018878,2]
[339984319,1728273032342,-1346.453661,0.00018878,2]
[339984321,1728273032352,-831.824272,0.00018878,2]
[339984323,1728273032361,-1346.453661,0.00018878,2]
[339984325,1728273032371,-831.824272,0.00018878,2]
[339984327,1728273032380,-151.49478,0.00018878,2]
[339984328,1728273032390,-151.0,0.00018878,2]
[339984330,1728273032400,-151.0,0.00018878,2]
[339984333,1728273032411,-151.0,0.00018878,2]
[339984335,1728273032422,-151.0,0.00018878,2]
[339984337,1728273032433,-151.0,0.00018878,2]
[339984339,1728273032444,-151.0,0.00018878,2]
[339984340,1728273032455,-153.379022,0.00018878,2]
[339984341,1728273032465,-404.072748,0.00018878,2]
[339984342,1728273032479,-404.072748,0.00018878,2]
[339984343,1728273032489,-404.072748,0.00018878,2]
[339984344,1728273032501,-404.072748,0.00018878,2]
[339984345,1728273032511,-237.804417,0.00018878,2]
[339984346,1728273032521,-151.0,0.00018878,2]
[339984347,1728273032531,-151.0,0.00018878,2]
[339984348,1728273032542,-151.0,0.00018878,2]
[339984349,1728273032553,-219.339267,0.00018878,2]
[339984350,1728273032565,-219.339267,0.00018878,2]
[339984351,1728273032575,-219.339267,0.00018878,2]
[339984353,1728273032586,-151.0,0.00018878,2]
[339984355,1728273032598,-151.0,0.00018878,2]
[339984357,1728273032610,-151.0,0.00018878,2]
[339984359,1728273032625,-219.339267,0.00018878,2]
[339984362,1728273032638,-219.339267,0.00018878,2]
[339984364,1728273032649,-219.339267,0.00018878,2]
[339984366,1728273032660,-151.0,0.00018878,2]
[339984368,1728273032671,-151.0,0.00018878,2]
[339984370,1728273032681,-974.481559,0.00018878,2]
[339984373,1728273032692,-151.0,0.00018878,2]
[339984375,1728273032703,-974.481559,0.00018878,2]
[339984377,1728273032712,-974.481559,0.00018878,2]
[339984379,1728273032721,-974.481559,0.00018878,2]
[339984381,1728273032731,-314.18680628,0.00018878,2]
[339984383,1728273032744,-152.64462362,0.000189,2]
[339984385,1728273032754,-7565.20364272,0.00018969,3]
[339984418,1728273042330,-151.73,0.000151,2]
[339984420,1728273042341,-557.952811,0.00018778,2]
[339984422,1728273042356,-240.711114,0.00018778,2]
[339984424,1728273042367,-150.158,0.0001886,2]
[339984426,1728273042376,-73.090886,0.00018878,2]
[339984453,1728273042843,-338.473822,0.00018878,2]
[339984456,1728273042856,-411.564708,0.00018878,2]
[339984458,1728273042868,-411.564708,0.00018878,2]
[339984460,1728273042879,-798.663925,0.00018878,2]
[339984462,1728273042889,-411.564708,0.00018878,2]
[339984465,1728273042901,-798.663925,0.00018878,2]
[339984467,1728273042912,-411.564708,0.00018878,2]
[339984469,1728273042925,-798.663925,0.00018878,2]
[339984471,1728273042934,-9832.55217478,0.00018969,3]
[339984473,1728273042944,-331.74,0.00018969,3]
[339984475,1728273042953,-151.0,0.00018969,2]